bitfinex-derivatives/quotes_BTCF0:USTF0_20250505
["timestamp","ask_amount","ask_price","bid_price","bid_amount"]
[1746481932775,0.23278175,94829.0,94828.0,0.80257158]
[1746481932971,0.23278175,94829.0,94828.0,0.37947634]
[1746481933190,0.33823375,94829.0,94828.0,0.37947634]
[1746481933780,0.33823375,94829.0,94828.0,0.87947634]
[1746481934285,0.33823375,94829.0,94828.0,1.09041614]
[1746481934982,0.33823375,94829.0,94828.0,1.07961708]
[1746481935179,0.33823375,94829.0,94828.0,0.36867728]
[1746481935380,0.79917125,94829.0,94828.0,0.3608]
[1746481935586,0.6863895,94829.0,94828.0,0.261]
[1746481936678,1.3658895,94829.0,94828.0,0.261]
[1746481936984,0.2109531,94822.0,94821.0,0.3608]
[1746481937184,0.2757931,94822.0,94821.0,0.3608]
[1746481937388,0.6312531,94822.0,94821.0,0.3608]
[1746481937885,0.4123531,94822.0,94821.0,0.3608]
[1746481938091,0.4123531,94822.0,94821.0,0.3628]
[1746481938279,0.5323531,94822.0,94821.0,0.3628]
[1746481939087,0.5323531,94822.0,94821.0,0.3608]
[1746481939481,0.7823531,94822.0,94821.0,0.3608]
[1746481939685,0.2109887,94806.0,94805.0,0.00794338]
[1746481939882,0.2109998,94801.0,94800.0,0.3608]
[1746481940081,0.2109998,94801.0,94790.0,0.00158232]
[1746481940082,0.2110221,94791.0,94790.0,0.00158232]
[1746481940278,0.2758621,94791.0,94790.0,0.00158232]
[1746481940479,0.7421581,94791.0,94790.0,0.00158232]
[1746481940703,0.2110292,94788.0,94786.0,0.0527581]
[1746481940985,0.2110292,94788.0,94787.0,0.211031]
[1746481941186,0.1055,94787.0,94781.0,0.2110442]
[1746481941488,0.0995,94787.0,94780.0,0.3608]
[1746481941786,0.105504,94786.0,94785.0,0.2110355]
[1746481941983,0.1045,94787.0,94786.0,0.2110332]
[1746481942183,0.2245,94787.0,94786.0,0.2754332]
[1746481943184,0.12,94787.0,94786.0,0.2754332]
[1746481943587,0.121,94787.0,94786.0,0.2754332]
[1746481944180,0.122,94787.0,94786.0,0.2754332]
[1746481944685,0.125,94787.0,94786.0,0.43406498]
[1746481945691,0.125,94787.0,94786.0,0.44106498]
[1746481948080,0.12,94787.0,94786.0,0.44406498]
[1746481948284,0.12,94787.0,94786.0,0.44606498]
[1746481949792,0.12,94787.0,94786.0,0.44406498]
[1746481949996,0.12,94787.0,94786.0,0.44606498]
[1746481950884,0.12,94787.0,94786.0,0.44406498]
[1746481951088,0.12,94787.0,94786.0,0.44606498]
[1746481951689,0.12,94787.0,94786.0,0.44506498]
[1746481953096,0.12,94787.0,94786.0,0.44306498]
[1746481953293,0.12,94787.0,94786.0,0.44606498]
[1746481953887,0.12,94787.0,94786.0,0.44306498]
[1746481954084,0.12,94787.0,94786.0,0.44506498]
[1746481954296,0.12,94787.0,94786.0,0.80586498]
[1746481954691,0.3608,94883.0,94789.0,0.1056]
[1746481954896,0.3608,94895.0,94869.0,0.3608]
[1746481954897,0.01046008,94884.0,94869.0,0.3608]
[1746481955194,0.106908,94870.0,94869.0,0.3608]
[1746481955390,0.5677544,94870.0,94869.0,0.3608]
[1746481955709,0.356908,94870.0,94869.0,0.3608]
[1746481955992,0.5677544,94870.0,94869.0,0.3608]
[1746481956194,0.6877544,94870.0,94869.0,0.5716486]
[1746481956387,0.4377544,94870.0,94869.0,0.5716486]
[1746481956591,0.6877544,94870.0,94869.0,0.3608]
[1746481956888,0.7142544,94870.0,94869.0,0.3608]
[1746481957089,0.2108797,94855.0,94854.0,0.3608]
[1746481957292,0.2829597,94855.0,94854.0,0.3608]
[1746481957493,0.6383837,94855.0,94854.0,0.3608]
[1746481957998,0.483604,94855.0,94844.0,0.2109031]
[1746481958297,0.2109042,94845.0,94844.0,0.2109031]
[1746481958497,0.2109042,94845.0,94844.0,0.2745031]
[1746481958698,0.3163402,94845.0,94844.0,0.2745031]
[1746481959093,0.4363402,94845.0,94844.0,0.2745031]
[1746481959703,0.4936402,94845.0,94844.0,0.2745031]
[1746481960295,0.282736,94845.0,94844.0,0.2745031]
[1746481960695,0.283736,94845.0,94844.0,0.2745031]
[1746481962494,0.4946379,94845.0,94844.0,0.2745031]
[1746481962808,0.4946379,94845.0,94844.0,0.0636]
[1746481963504,0.4701379,94845.0,94844.0,0.0636]
[1746481963904,0.4373379,94845.0,94844.0,0.0636]
[1746481965904,0.4383379,94845.0,94844.0,0.0636]
[1746481968907,0.4363379,94845.0,94844.0,0.0636]
[1746481969110,0.4383379,94845.0,94844.0,0.0636]
[1746481971010,0.4948379,94845.0,94844.0,0.0636]
[1746481972111,0.4938379,94845.0,94844.0,0.0636]
[1746481973506,0.4950562,94845.0,94844.0,0.0636]
[1746481975710,0.4930562,94845.0,94844.0,0.0636]
[1746481975911,0.4950562,94845.0,94844.0,0.0636]
[1746481977209,0.4385562,94845.0,94844.0,0.0636]
[1746481977915,0.4365562,94845.0,94844.0,0.0636]
[1746481978114,0.4385562,94845.0,94844.0,0.0636]
[1746481980918,0.4365562,94845.0,94844.0,0.0636]
[1746481981219,0.4385562,94845.0,94844.0,0.0636]
[1746481981421,0.4629562,94845.0,94844.0,0.0636]
[1746481983718,0.4385562,94845.0,94844.0,0.0636]
[1746481987107,0.3331202,94845.0,94844.0,0.0636]
[1746481990622,0.3331202,94845.0,94844.0,0.43505254]
[1746481991412,0.1222183,94845.0,94844.0,0.43505254]
[1746481991722,0.2832202,94845.0,94844.0,0.79585254]
[1746481992119,0.0723183,94845.0,94844.0,0.79585254]
[1746481992326,0.2108833,94857.0,94856.0,0.2635886]
[1746481992820,0.2108833,94857.0,94856.0,0.42222038]
[1746481993425,0.3308833,94857.0,94856.0,0.42222038]
[1746481993623,0.3338833,94857.0,94856.0,0.42413694]
[1746481994318,0.3338833,94857.0,94856.0,0.37141824]
[1746481994919,0.3338833,94857.0,94856.0,0.16054834]
[1746481995319,0.3338833,94857.0,94856.0,0.40242584]
[1746481995520,0.3338833,94857.0,94856.0,0.43392584]
[1746482000031,0.3308833,94857.0,94856.0,0.43392584]
[1746482002936,0.3308833,94857.0,94856.0,0.22304834]
[1746482003539,0.3318833,94857.0,94856.0,0.43392584]
[1746482003837,0.3318833,94857.0,94856.0,0.2733775]
[1746482004927,0.3318833,94857.0,94856.0,0.43392584]
[1746482006843,0.3318833,94857.0,94856.0,0.43200928]
[1746482007043,0.3318833,94857.0,94856.0,0.43392584]
[1746482007338,0.3318833,94857.0,94856.0,0.22304834]
[1746482007840,0.3318833,94857.0,94856.0,0.43392584]
[1746482009337,0.3318833,94857.0,94856.0,0.22304834]
[1746482012847,0.3318833,94857.0,94853.0,0.571683]
[1746482012848,0.2108819,94854.0,94853.0,0.571683]
[1746482013241,0.3308819,94854.0,94853.0,0.57359956]
[1746482013444,0.3308819,94854.0,94853.0,0.60679956]
[1746482013643,0.3308819,94854.0,94853.0,0.39591656]
[1746482014146,0.2108997,94846.0,94845.0,0.0301]
[1746482014450,0.2108997,94846.0,94845.0,0.0625]
[1746482014640,0.2108997,94846.0,94845.0,0.00191656]
[1746482014837,0.2109019,94845.0,94837.0,0.0324]
[1746482015043,0.210922,94836.0,94835.0,0.00105446]
[1746482015452,0.208922,94836.0,94835.0,0.00105446]
[1746482015750,0.207922,94836.0,94835.0,0.00105446]
[1746482015952,0.271722,94836.0,94835.0,0.00105446]
[1746482016250,0.391722,94836.0,94835.0,0.00805446]
[1746482017241,0.49716601,94836.0,94835.0,0.00805446]
[1746482019854,0.49716601,94836.0,94835.0,0.00605446]
[1746482025654,0.49716601,94836.0,94817.0,0.00158199]
[1746482025655,0.210962,94818.0,94817.0,0.00158199]
[1746482025847,0.210962,94818.0,94817.0,9e-08]
[1746482026046,0.316426,94818.0,94817.0,9e-08]
[1746482026252,0.436426,94818.0,94817.0,9e-08]
[1746482026453,0.498126,94818.0,94817.0,9e-08]
[1746482026652,0.858926,94818.0,94817.0,9e-08]
[1746482026848,0.862926,94818.0,94817.0,9e-08]
[1746482027261,0.866926,94818.0,94817.0,9e-08]
[1746482027457,0.87471278,94818.0,94817.0,9e-08]
[1746482027662,0.87071278,94818.0,94817.0,9e-08]
[1746482027862,0.87671278,94818.0,94817.0,9e-08]
[1746482028967,0.87671278,94818.0,94788.0,0.36238239]
[1746482028968,0.2110199,94792.0,94788.0,0.36238239]
[1746482029153,0.2110199,94792.0,94765.0,0.16011642]
[1746482029154,0.2110399,94783.0,94782.0,7e-08]
[1746482029354,0.5718399,94783.0,94782.0,7e-08]
[1746482029662,0.2110555,94776.0,94766.0,0.0624]
[1746482030057,0.2110555,94776.0,94775.0,0.16160347]
[1746482030258,0.3310555,94776.0,94775.0,0.16160347]
[1746482030453,0.12,94776.0,94775.0,0.62266117]
[1746482030858,0.3350555,94776.0,94775.0,0.62266117]
[1746482032962,0.3350555,94776.0,94775.0,0.37266117]
[1746482033466,0.124,94776.0,94775.0,0.37266117]
[1746482035266,0.3350555,94776.0,94775.0,0.37266117]
[1746482037867,0.3330555,94776.0,94775.0,0.37266117]
[1746482038053,0.3330555,94776.0,94775.0,0.37366117]
[1746482039068,0.3320555,94776.0,94775.0,0.37366117]
[1746482044874,0.3320555,94776.0,94775.0,0.37174461]
[1746482045063,0.3320555,94776.0,94775.0,0.37366117]
[1746482045465,0.121,94776.0,94775.0,0.37366117]
[1746482045967,0.3320555,94776.0,94775.0,0.37366117]
[1746482048073,0.121,94776.0,94775.0,0.37174461]
[1746482049975,0.0015,94800.0,94775.0,0.63205513]
[1746482050169,0.3608,94877.0,94818.0,0.3608]
[1746482050370,0.2108597,94864.0,94863.0,0.51693178]
[1746482050576,0.0325,94869.0,94863.0,0.51693178]
[1746482050877,0.03,94876.0,94864.0,0.0317]
[1746482051071,0.121,94866.0,94865.0,0.2108575]
[1746482051673,0.121,94866.0,94864.0,0.0317]
[1746482051874,0.121,94866.0,94865.0,0.2108575]
[1746482052577,0.127,94866.0,94865.0,0.2108575]
[1746482053176,0.127,94866.0,94865.0,0.21277406]
[1746482053375,0.133,94866.0,94865.0,0.24537406]
[1746482054075,0.133,94866.0,94865.0,0.60617406]
[1746482055477,0.129,94866.0,94865.0,0.60617406]
[1746482055867,0.126,94866.0,94865.0,0.60617406]
[1746482056478,0.3368553,94866.0,94865.0,0.36271656]
[1746482057274,0.3688553,94866.0,94865.0,0.36271656]
[1746482057475,0.3688553,94866.0,94865.0,0.57357406]
[1746482058281,0.3688553,94866.0,94865.0,0.36271656]
[1746482058978,0.126,94866.0,94865.0,0.72970584]
[1746482059384,0.123,94866.0,94865.0,0.72970584]
[1746482059574,0.125,94866.0,94865.0,0.79750584]
[1746482061384,0.125,94866.0,94865.0,1.29750584]
[1746482063482,0.125,94866.0,94865.0,1.26570584]
[1746482070384,0.125,94866.0,94865.0,1.05484834]
[1746482070587,0.3358553,94866.0,94865.0,0.86271656]
[1746482071183,0.4142553,94866.0,94865.0,0.86271656]
[1746482071383,0.4142553,94866.0,94865.0,0.36271656]
[1746482071587,0.4142553,94866.0,94865.0,0.3608]
[1746482074894,0.5196673,94866.0,94865.0,0.3608]
[1746482076096,0.4142553,94866.0,94865.0,0.3608]
[1746482076290,0.5196673,94866.0,94865.0,0.3608]
[1746482084002,0.4142553,94866.0,94865.0,0.3608]
[1746482087106,0.4142553,94866.0,94865.0,0.36271656]
[1746482087506,0.4122553,94866.0,94865.0,0.36271656]
[1746482087698,0.4142553,94866.0,94865.0,0.36271656]
[1746482087891,0.3358553,94866.0,94865.0,0.36271656]
[1746482088098,0.3358553,94866.0,94865.0,0.72970584]
[1746482089802,0.3358553,94866.0,94865.0,0.51884834]
[1746482090611,0.4140553,94866.0,94865.0,0.36271656]
[1746482091005,0.4140553,94866.0,94865.0,0.3608]
[1746482096310,0.5194673,94866.0,94865.0,0.3608]
[1746482109219,0.4140553,94866.0,94865.0,0.3608]
[1746482109720,0.3769553,94866.0,94865.0,0.3608]
[1746482112612,0.4165553,94866.0,94865.0,0.3608]
[1746482116222,0.4165553,94866.0,94865.0,0.51693178]
[1746482118424,0.4165553,94866.0,94865.0,0.15613178]
[1746482119525,0.2108597,94864.0,94863.0,0.0862]
[1746482120024,0.2108597,94864.0,94863.0,0.24424834]
[1746482120226,0.3308597,94864.0,94863.0,0.24424834]
[1746482121023,0.3348597,94864.0,94863.0,0.24424834]
[1746482124431,0.3348597,94864.0,94863.0,0.24233178]
[1746482124623,0.3348597,94864.0,94863.0,0.24424834]
[1746482127032,0.3348597,94864.0,94863.0,0.24233178]
[1746482131435,0.3348597,94864.0,94863.0,0.0862]
[1746482131640,0.3348597,94864.0,94863.0,0.0437]
[1746482132738,0.3348597,94864.0,94863.0,0.0864]
[1746482134139,0.3348597,94864.0,94863.0,0.0437]
[1746482135542,0.3348597,94864.0,94863.0,0.0839]
[1746482139550,0.3348597,94864.0,94863.0,0.0437]
[1746482140243,0.4188597,94864.0,94863.0,0.0437]
[1746482143152,0.4188597,94864.0,94863.0,0.085]
[1746482143558,0.4188597,94864.0,94863.0,0.0437]
[1746482143752,0.2108797,94855.0,94854.0,0.0413]
[1746482143953,0.2108797,94855.0,94854.0,0.08471656]
[1746482144152,0.3308797,94855.0,94854.0,0.24084834]
[1746482144759,0.3318797,94855.0,94854.0,0.24084834]
[1746482145961,0.3318797,94855.0,94854.0,0.24184834]
[1746482148460,0.3749797,94855.0,94854.0,0.24184834]
[1746482149554,0.3749797,94855.0,94854.0,0.20054834]
[1746482155163,0.3749797,94855.0,94854.0,0.0425]
[1746482156154,0.3749797,94855.0,94854.0,0.04441656]
[1746482157163,0.3749797,94855.0,94854.0,0.08481656]
[1746482157662,0.3318797,94855.0,94854.0,0.08481656]
[1746482159466,0.3318797,94855.0,94854.0,0.0829]
[1746482159656,0.3318797,94855.0,94854.0,0.08481656]
[1746482160866,0.3722797,94855.0,94854.0,0.08481656]
[1746482161967,0.3722797,94855.0,94854.0,0.0829]
[1746482162167,0.3722797,94855.0,94854.0,0.08481656]
[1746482165871,0.3722797,94855.0,94854.0,0.24094834]
[1746482167869,0.3722797,94855.0,94854.0,0.0425]
[1746482168057,0.3318797,94855.0,94854.0,0.0803]
[1746482170570,0.3318797,94855.0,94854.0,0.0425]
[1746482170764,0.3717797,94855.0,94854.0,0.0425]
[1746482171474,0.3717797,94855.0,94854.0,0.0816]
[1746482176874,0.3318797,94855.0,94854.0,0.0816]
[1746482183178,0.3722797,94855.0,94854.0,0.0816]
[1746482189683,0.4136797,94855.0,94854.0,0.0816]
[1746482196789,0.4136797,94855.0,94854.0,0.23773178]
[1746482201087,0.4136797,94855.0,94854.0,0.23964834]
[1746482203192,0.4136797,94855.0,94854.0,0.23773178]
[1746482203488,0.4136797,94855.0,94854.0,0.23964834]
[1746482208385,0.4136797,94855.0,94854.0,0.04441656]
[1746482208589,0.4136797,94855.0,94854.0,0.00291656]
[1746482210094,0.4136797,94855.0,94854.0,0.04571656]
[1746482212396,0.4136797,94855.0,94854.0,0.00291656]
[1746482212694,0.4136797,94855.0,94854.0,0.001]
[1746482213290,0.4136797,94855.0,94854.0,0.0435]
[1746482220002,0.5191037,94855.0,94854.0,0.0435]
[1746482220207,0.2109242,94835.0,94834.0,0.0433]
[1746482220394,0.0527321,94833.0,94832.0,0.15613178]
[1746482220600,0.210942,94827.0,94826.0,0.0433]
[1746482220907,0.2109464,94825.0,94824.0,0.16011642]
[1746482221303,0.3309464,94825.0,94824.0,0.23082926]
[1746482221499,0.4764464,94825.0,94824.0,0.06562482]
[1746482221700,0.2109553,94821.0,94820.0,0.21409959]
[1746482221898,0.2059553,94821.0,94820.0,0.16734559]
[1746482222101,0.2059553,94821.0,94820.0,0.16926215]
[1746482222303,0.3259553,94821.0,94820.0,0.01222046]
[1746482222508,0.4080553,94821.0,94820.0,0.0103039]
[1746482223099,0.4080553,94821.0,94820.0,0.01222046]
[1746482223302,0.4080553,94821.0,94820.0,0.0103039]
[1746482224708,0.4100553,94821.0,94820.0,0.0103039]
[1746482225615,0.4100553,94821.0,94812.0,0.0834]
[1746482225616,0.210962,94818.0,94812.0,0.0834]
[1746482226116,0.330962,94818.0,94812.0,0.0834]
[1746482226316,0.330962,94818.0,94817.0,9e-08]
[1746482226710,0.694762,94818.0,94817.0,9e-08]
[1746482227014,0.697762,94818.0,94817.0,9e-08]
[1746482227211,0.781762,94818.0,94817.0,9e-08]
[1746482228010,0.778762,94818.0,94817.0,9e-08]
[1746482228203,0.782762,94818.0,94817.0,9e-08]
[1746482229719,0.780762,94818.0,94817.0,9e-08]
[1746482231815,0.419962,94818.0,94817.0,9e-08]
[1746482232721,0.780762,94818.0,94817.0,9e-08]
[1746482237219,0.2109776,94811.0,94810.0,0.001582]
[1746482237417,0.2109776,94811.0,94805.0,9e-08]
[1746482237418,0.2109887,94806.0,94805.0,9e-08]
[1746482238123,0.4133887,94806.0,94805.0,9e-08]
[1746482239022,0.4133887,94806.0,94805.0,0.00100009]
[1746482239218,0.4133887,94806.0,94805.0,9e-08]
[1746482239615,0.2110288,94788.0,94787.0,0.01069654]
[1746482239824,0.2110377,94784.0,94783.0,0.0438]
[1746482240022,0.2100377,94784.0,94783.0,0.15248868]
[1746482240224,0.2100377,94784.0,94783.0,0.40440524]
[1746482240420,0.2100377,94784.0,94783.0,0.49636021]
[1746482240921,0.2090377,94784.0,94783.0,0.49636021]
[1746482241223,0.2090377,94784.0,94783.0,0.24636021]
[1746482241527,0.2070377,94784.0,94783.0,0.24636021]
[1746482241925,0.2070377,94784.0,94783.0,0.24936021]
[1746482242126,0.2070377,94784.0,94783.0,0.25236021]
[1746482243131,0.3270377,94784.0,94783.0,0.25236021]
[1746482243629,0.3270377,94784.0,94783.0,0.24200524]
[1746482245632,0.6878377,94784.0,94783.0,0.24200524]
[1746482245926,0.7289377,94784.0,94783.0,0.13331656]
[1746482246123,0.7289377,94784.0,94783.0,0.006]
[1746482246329,0.2110399,94783.0,94782.0,7e-08]
[1746482246631,0.2533399,94783.0,94782.0,7e-08]
[1746482246931,0.2944399,94783.0,94782.0,7e-08]
[1746482247130,0.4144399,94783.0,94782.0,7e-08]
[1746482248221,0.4174399,94783.0,94782.0,7e-08]
[1746482248727,0.4214399,94783.0,94782.0,7e-08]
[1746482250331,0.42925154,94783.0,94782.0,7e-08]
[1746482257437,0.53475554,94783.0,94782.0,7e-08]
[1746482257640,0.2110555,94776.0,94775.0,1e-07]
[1746482257840,0.6381755,94776.0,94775.0,1e-07]
[1746482258138,0.7581755,94776.0,94775.0,1e-07]
[1746482258629,0.8394755,94776.0,94775.0,1e-07]
[1746482259231,0.8404755,94776.0,94775.0,1e-07]
[1746482259529,0.8414755,94776.0,94775.0,1e-07]
[1746482260340,0.8454755,94776.0,94775.0,1e-07]
[1746482260836,0.8484755,94776.0,94775.0,0.0010001]
[1746482261042,0.2110889,94761.0,94760.0,0.0794]
[1746482261639,0.2110889,94761.0,94760.0,0.18808868]
[1746482262246,0.3310889,94761.0,94760.0,0.18808868]
[1746482262739,0.3330889,94761.0,94760.0,0.18808868]
[1746482263632,0.3360889,94761.0,94760.0,0.18808868]
[1746482264135,0.3370889,94761.0,94760.0,0.18808868]
[1746482267743,0.3370889,94761.0,94760.0,0.65441668]
[1746482273842,0.3370889,94761.0,94760.0,0.29361668]
[1746482282151,0.3370889,94761.0,94760.0,0.33581668]
[1746482283049,0.3370889,94761.0,94760.0,0.23028868]
[1746482285750,0.3370889,94761.0,94760.0,0.44137978]
[1746482290658,0.3787889,94761.0,94760.0,0.44137978]
[1746482298457,0.4178889,94761.0,94760.0,0.44137978]
[1746482301662,0.4178889,94761.0,94760.0,0.10868868]
[1746482301860,0.2110911,94760.0,94759.0,0.3608]
[1746482302263,0.4111911,94760.0,94759.0,0.3608]
[1746482303165,0.4141911,94760.0,94759.0,0.3608]
[1746482303957,0.4171911,94760.0,94759.0,0.3608]
[1746482309371,0.2111045,94754.0,94753.0,0.21916594]
[1746482309967,0.2111045,94754.0,94753.0,0.32785462]
[1746482310266,0.3311045,94754.0,94753.0,0.32785462]
[1746482310457,0.4151045,94754.0,94753.0,0.32785462]
[1746482310653,0.4161045,94754.0,94753.0,0.32785462]
[1746482311269,0.4161045,94754.0,94753.0,0.11674862]
[1746482311967,0.4171045,94754.0,94753.0,0.11674862]
[1746482316270,0.4171045,94754.0,94753.0,0.32785532]
[1746482325083,0.2111067,94753.0,94752.0,0.37284635]
[1746482325284,0.2111067,94753.0,94752.0,0.48153503]
[1746482325475,0.2956067,94753.0,94752.0,0.36238295]
[1746482325676,0.2956067,94753.0,94752.0,0.00158295]
[1746482326176,0.4156067,94753.0,94752.0,0.00158295]
[1746482326373,0.4166067,94753.0,94752.0,0.00158295]
[1746482327283,0.4176067,94753.0,94752.0,0.00158295]
[1746482332391,0.7784067,94753.0,94752.0,0.00158295]
[1746482332988,0.4176067,94753.0,94752.0,0.00158295]
[1746482333585,0.2111179,94748.0,94747.0,0.00158316]
[1746482333888,0.5719179,94748.0,94747.0,0.00158316]
[1746482334090,0.6919179,94748.0,94747.0,0.00158316]
[1746482334486,0.7735179,94748.0,94747.0,0.00158316]
[1746482334688,0.2111223,94746.0,94745.0,2e-08]
[1746482335286,0.5028663,94746.0,94745.0,2e-08]
[1746482335687,0.5018663,94746.0,94745.0,2e-08]
[1746482336289,0.5128663,94746.0,94745.0,2e-08]
[1746482336790,0.5128663,94746.0,94720.0,0.0411]
[1746482336791,0.209178,94721.0,94720.0,0.0411]
[1746482337291,0.328178,94721.0,94720.0,0.14978868]
[1746482337493,0.327178,94721.0,94720.0,0.16034784]
[1746482337679,0.327178,94721.0,94720.0,1.09600729]
[1746482338287,0.333178,94721.0,94720.0,0.84600729]
[1746482338885,0.340178,94721.0,94720.0,0.84700729]
[1746482339084,0.220178,94721.0,94720.0,0.84700729]
[1746482339286,0.213178,94721.0,94720.0,0.84600729]
[1746482339591,0.213178,94721.0,94720.0,0.84700729]
[1746482339592,0.219178,94721.0,94720.0,0.84700729]
[1746482339779,0.213178,94721.0,94720.0,0.84700729]
[1746482340585,0.214178,94721.0,94720.0,0.84700729]
[1746482345688,0.214178,94721.0,94720.0,0.63582699]
[1746482345892,0.214178,94721.0,94720.0,0.53025499]
[1746482346091,0.334178,94721.0,94720.0,0.53025499]
[1746482346294,0.334178,94721.0,94720.0,0.74143529]
[1746482346495,0.334178,94721.0,94720.0,0.78343529]
[1746482348099,0.334178,94721.0,94720.0,0.57225499]
[1746482348499,0.334178,94721.0,94720.0,0.78343529]
[1746482348699,0.334178,94721.0,94720.0,0.57225499]
[1746482349503,0.334178,94721.0,94720.0,0.56414784]
[1746482349797,0.374078,94721.0,94720.0,0.56414784]
[1746482350388,0.374078,94721.0,94720.0,0.52214784]
[1746482350594,0.374078,94721.0,94720.0,0.3618]
[1746482350898,0.412978,94721.0,94720.0,0.3618]
[1746482351093,0.292978,94721.0,94720.0,0.3618]
[1746482351998,0.29277296,94721.0,94720.0,0.3618]
[1746482352302,0.29277296,94721.0,94720.0,0.001]
[1746482352303,0.41277296,94721.0,94720.0,0.001]
[1746482368101,0.29277296,94721.0,94720.0,0.001]
[1746482375813,0.25387296,94721.0,94720.0,0.001]
[1746482376015,0.21397296,94721.0,94720.0,0.10968868]
[1746482376315,0.33397296,94721.0,94720.0,0.10968868]
[1746482376512,0.127,94721.0,94720.0,0.76054098]
[1746482377014,0.127,94721.0,94720.0,0.65496898]
[1746482377220,0.218178,94721.0,94720.0,0.76054098]
[1746482377620,0.007,94721.0,94720.0,0.76054098]
[1746482377818,0.2111689,94732.0,94731.0,0.2639268]
[1746482378012,0.2111689,94732.0,94731.0,0.73341548]
[1746482378920,0.2151689,94732.0,94731.0,0.73341548]
[1746482379319,0.2211689,94732.0,94731.0,0.73441548]
[1746482380023,0.2211689,94732.0,94731.0,0.68162928]
[1746482380716,0.2201689,94732.0,94731.0,0.68162928]
[1746482381321,0.2181689,94732.0,94731.0,0.76312928]
[1746482381912,0.2221689,94732.0,94731.0,0.76312928]
[1746482382316,0.2131689,94732.0,94731.0,0.76212928]
[1746482382516,0.2181689,94732.0,94731.0,0.76212928]
[1746482383310,0.2181689,94732.0,94731.0,0.86768928]
[1746482383511,0.007,94732.0,94731.0,0.86768928]
[1746482383713,0.3167181,94740.0,94739.0,0.2111268]
[1746482384113,0.3167181,94740.0,94739.0,0.31981548]
[1746482384324,0.263932,94740.0,94739.0,0.40601548]
[1746482384823,0.263932,94740.0,94739.0,0.76681548]
[1746482385213,0.268932,94740.0,94739.0,0.76681548]
[1746482385517,0.2161468,94740.0,94739.0,0.87236748]
[1746482385720,0.3166923,94747.0,94746.0,0.2111102]
[1746482385915,0.3694745,94747.0,94746.0,0.2111102]
[1746482386119,0.4894745,94747.0,94746.0,0.31979888]
[1746482386721,0.4894745,94747.0,94746.0,0.40589888]
[1746482388224,0.4894745,94747.0,94746.0,0.41663086]
[1746482388423,0.4934745,94747.0,94746.0,0.41663086]
[1746482389527,0.4934745,94747.0,94746.0,0.40589888]
[1746482389827,0.4934745,94747.0,94746.0,0.41640975]
[1746482390126,0.4934745,94747.0,94746.0,0.77720975]
[1746482390319,0.0527781,94751.0,94750.0,0.2638867]
[1746482390626,0.0527781,94751.0,94750.0,0.3467867]
[1746482390826,0.2638893,94751.0,94750.0,0.45547538]
[1746482391421,0.2688893,94751.0,94750.0,0.45547538]
[1746482394523,0.2688893,94751.0,94750.0,0.40269758]
[1746482398030,0.2658893,94751.0,94750.0,0.40269758]
[1746482398434,0.2638893,94751.0,94750.0,0.40269758]
[1746482398730,0.2648893,94751.0,94750.0,0.40269758]
[1746482400135,0.3848893,94751.0,94750.0,0.40269758]
[1746482400330,0.3848893,94751.0,94750.0,0.19158868]
[1746482400531,0.2111201,94747.0,94746.0,0.37131087]
[1746482400834,0.2111201,94747.0,94746.0,0.69112185]
[1746482401228,0.3311201,94747.0,94746.0,0.73332185]
[1746482401428,0.3753201,94747.0,94746.0,0.73332185]
[1746482401625,0.1642,94747.0,94746.0,0.73332185]
[1746482401837,0.0527758,94755.0,94747.0,0.0527795]
[1746482402138,0.0527758,94755.0,94754.0,0.3608]
[1746482402139,0.2111023,94755.0,94754.0,0.3608]
[1746482402334,0.2111023,94755.0,94754.0,0.46948868]
[1746482402838,0.2111023,94755.0,94754.0,0.47760094]
[1746482403138,0.3311023,94755.0,94754.0,0.47760094]
[1746482403429,0.3311023,94755.0,94754.0,0.68870544]
[1746482403629,0.3311023,94755.0,94754.0,0.75478544]
[1746482403828,0.2125828,94765.0,94764.0,0.2110822]
[1746482404027,0.0015,94765.0,94764.0,0.68057088]
[1746482404334,0.2637815,94794.0,94775.0,0.10868868]
[1746482404640,0.2119897,94806.0,94805.0,0.2109909]
[1746482404829,0.0418,94829.0,94813.0,0.2109731]
[1746482405131,0.26826504,94814.0,94813.0,0.46948868]
[1746482405335,0.47923594,94814.0,94813.0,0.53556868]
[1746482405733,0.47923594,94814.0,94813.0,0.46948868]
[1746482406036,0.47923594,94814.0,94813.0,0.85197378]
[1746482406427,0.47923594,94814.0,94813.0,1.36243969]
[1746482407029,0.48423594,94814.0,94813.0,1.05406194]
[1746482407230,0.48423594,94814.0,94813.0,1.26503504]
[1746482407630,0.48823594,94814.0,94813.0,1.26503504]
[1746482407834,0.2199709,94814.0,94813.0,0.86886735]
[1746482408140,0.3399709,94814.0,94813.0,0.8608]
[1746482408837,0.3399709,94814.0,94813.0,0.3608]
[1746482412132,0.3399709,94814.0,94813.0,0.5717731]
[1746482418033,0.129,94814.0,94813.0,0.68046178]
[1746482418444,0.3399709,94814.0,94813.0,0.68046178]
[1746482418748,0.3399709,94814.0,94813.0,0.72536178]
[1746482419041,0.3399709,94814.0,94813.0,0.76966178]
[1746482419241,0.2199709,94814.0,94813.0,0.76966178]
[1746482419442,0.2199709,94814.0,94813.0,1.26966178]
[1746482420039,0.009,94814.0,94813.0,1.26966178]
[1746482422446,0.2199709,94814.0,94813.0,1.26966178]
[1746482422631,0.009,94814.0,94813.0,1.26966178]
[1746482423840,0.009,94814.0,94813.0,1.33562178]
[1746482425539,0.005,94814.0,94813.0,1.33662178]
[1746482426148,0.2109661,94817.0,94816.0,0.2109665]
[1746482426442,0.2558613,94819.0,94818.0,0.210962]
[1746482426649,0.2558613,94819.0,94818.0,0.31965068]
[1746482427049,0.2558613,94819.0,94818.0,0.36345068]
[1746482427252,0.3758613,94819.0,94818.0,0.36345068]
[1746482427551,0.3758613,94819.0,94818.0,0.86345068]
[1746482429550,0.3778613,94819.0,94818.0,0.86345068]
[1746482431153,0.1669,94819.0,94818.0,0.86345068]
[1746482431342,0.122,94819.0,94818.0,0.86345068]
[1746482433443,0.2109286,94836.0,94835.0,0.10868868]
[1746482433644,0.052731,94838.0,94836.0,0.2109197]
[1746482433645,0.2109198,94837.0,94836.0,0.2109197]
[1746482434152,0.2109152,94840.0,94839.0,0.2636391]
[1746482434459,0.2109152,94840.0,94839.0,0.2109108]
[1746482434655,0.2109152,94840.0,94839.0,0.2551108]
[1746482435255,0.3008152,94840.0,94839.0,0.2551108]
[1746482435755,0.3008152,94840.0,94839.0,0.2992108]
[1746482436251,0.2587152,94840.0,94839.0,0.2992108]
[1746482436456,0.2587152,94840.0,94839.0,0.40789948]